fUST/lending_fUST_20250722
["ID","MTS","AMOUNT","RATE_DAILY","PERIOD"]
[373894710,1753140663832,-460.0,0.00019784,2]
[373894711,1753140663842,-681.98,0.00019784,2]
[373894712,1753140663852,-1019.82,0.00019784,2]
[373894713,1753140663862,-1245.38,0.00019784,2]
[373894714,1753140663872,-460.0,0.00019784,2]
[373894715,1753140663883,-700.42,0.00019784,2]
[373894716,1753140663894,-681.52,0.00019784,2]
[373894717,1753140663904,-519.27,0.00019784,2]
[373894718,1753140663914,-460.0,0.00019784,2]
[373894719,1753140663924,-460.0,0.00019785,2]
[373894720,1753140663934,-150.0,0.00019786,2]
[373894721,1753140663944,-251.562,0.00019786,2]
[373894722,1753140663954,-203.428,0.00019786,2]
[373894723,1753140663964,-150.0,0.00019786,2]
[373894724,1753140663974,-151.0,0.00019786,2]
[373894725,1753140663984,-151.0,0.00019786,2]
[373894726,1753140663995,-258.832452,0.00019786,2]
[373894727,1753140664004,-258.832452,0.00019786,2]
[373894728,1753140664015,-151.0,0.00019786,2]
[373894729,1753140664024,-228.233443,0.00019786,2]
[373894730,1753140664034,-228.233443,0.00019786,2]
[373894731,1753140664045,-1750.53,0.00019786,2]
[373894732,1753140664055,-1045.06,0.00019786,2]
[373894733,1753140664065,-460.0,0.00019786,2]
[373894734,1753140664075,-1642.26,0.00019786,2]
[373894735,1753140664084,-151.0,0.00019787,2]
[373894736,1753140664094,-158.503752,0.00019787,2]
[373894737,1753140664104,-158.503752,0.00019787,2]
[373894738,1753140664114,-460.0,0.00019787,2]
[373894739,1753140664123,-460.0,0.00019787,2]
[373894740,1753140664132,-460.0,0.00019787,2]
[373894741,1753140664142,-6853.84,0.00019787,2]
[373894742,1753140664152,-1820.72,0.00019787,2]
[373894743,1753140664163,-2086.57,0.00019787,2]
[373894744,1753140664172,-3241.4,0.00019788,2]
[373894745,1753140664183,-611.95,0.00019788,2]
[373894746,1753140664192,-151.0,0.0001979,2]
[373894747,1753140664203,-151.0,0.0001979,2]
[373894748,1753140664213,-151.0,0.0001979,2]
[373894749,1753140664223,-1986.06,0.0001979,2]
[373894750,1753140664233,-460.0,0.0001979,2]
[373894751,1753140664243,-460.0,0.0001979,2]
[373894752,1753140664253,-859.0,0.00019795,2]
[373894753,1753140664264,-2373.76,0.00019802,2]
[373894754,1753140664277,-1158.85,0.00019802,2]
[373894755,1753140664287,-1172.0,0.00019812,2]
[373894756,1753140664296,-433.333481,0.00019812,2]
[373894757,1753140664307,-866.0,0.00019812,2]
[373894758,1753140664316,-156.933266,0.00019812,2]
[373894759,1753140664326,-156.933266,0.00019812,2]
[373894760,1753140664336,-8389.27005442,0.00019831,2]
[373894761,1753140664348,-151.0,0.00019881,2]
[373894762,1753140664358,-229.937196,0.00019893,2]
[373894763,1753140664369,-229.937196,0.00019893,2]
[373894764,1753140664379,-203.992475,0.00019894,2]
[373894765,1753140664389,-203.992475,0.00019894,2]
[373894766,1753140664398,-194.761355,0.00019894,2]
[373894767,1753140664407,-194.761355,0.00019894,2]
[373894768,1753140664417,-158.503752,0.00019894,2]
[373894769,1753140664426,-158.503752,0.00019894,2]
[373894770,1753140664437,-151.0,0.00019894,2]
[373894771,1753140664447,-151.0,0.00019894,2]
[373894772,1753140664456,-151.0,0.00019894,2]
[373894773,1753140664466,-151.0,0.00019894,2]
[373894774,1753140664476,-247.009665,0.00019894,2]
[373894775,1753140664485,-247.009665,0.00019894,2]
[373894776,1753140664495,-151.0,0.00019894,2]
[373894777,1753140664504,-151.0,0.00019894,2]
[373894778,1753140664514,-859.0,0.00019915,2]
[373894779,1753140664524,-1000.0,0.00019921,2]
[373894780,1753140664533,-1000.0,0.00019921,2]
[373894781,1753140664543,-1000.0,0.00019921,2]
[373894782,1753140664552,-1000.0,0.00019921,2]
[373894783,1753140664561,-151.0,0.00019933,2]
[373894784,1753140664571,-151.0,0.00019935,2]
[373894785,1753140664581,-859.0,0.00019939,2]
[373894786,1753140664591,-500.0,0.00019946,2]
[373894787,1753140664603,-500.30675843,0.00019946,2]
[373894788,1753140664612,-500.0,0.00019946,2]
[373894789,1753140664623,-500.0,0.00019946,2]
[373894790,1753140664633,-500.0,0.00019946,2]
[373894791,1753140664642,-180.26440937,0.00019946,2]
[373894792,1753140664652,-305.50534132,0.00019946,2]
[373894793,1753140664662,-500.0,0.00019946,2]
[373894794,1753140664672,-160.2526375,0.00019946,2]
[373894795,1753140664681,-500.0,0.00019946,2]
[373894796,1753140664691,-500.0,0.00019946,2]
[373894797,1753140664700,-500.0,0.00019946,2]
[373894798,1753140664710,-500.0,0.00019946,2]
[373894799,1753140664720,-500.88066744,0.00019946,2]
[373894800,1753140664730,-500.0,0.00019946,2]
[373894801,1753140664739,-500.0,0.00019946,2]
[373894802,1753140664750,-500.0,0.00019946,2]
[373894803,1753140664760,-500.0,0.00019946,2]
[373894804,1753140664769,-500.0,0.00019946,2]
[373894805,1753140664778,-500.0,0.00019946,2]
[373894806,1753140664788,-500.0,0.00019946,2]
[373894807,1753140664797,-500.0,0.00019946,2]
[373894808,1753140664807,-500.0,0.00019946,2]
[373894809,1753140664816,-500.0,0.00019946,2]
[373894810,1753140664826,-500.0,0.00019946,2]
[373894811,1753140664836,-500.0,0.00019946,2]
[373894812,1753140664846,-500.0,0.00019946,2]
[373894813,1753140664856,-500.0,0.00019946,2]
[373894814,1753140664866,-500.0,0.00019946,2]
[373894815,1753140664875,-460.0,0.00019959,2]
[373894816,1753140664885,-460.0,0.00019959,2]
[373894817,1753140664895,-460.0,0.00019959,2]
[373894818,1753140664905,-460.0,0.00019959,2]
[373894819,1753140664915,-460.0,0.00019959,2]
[373894820,1753140664925,-460.0,0.00019959,2]
[373894821,1753140664935,-3416.98,0.00019959,2]
[373894822,1753140664944,-258.832452,0.00019959,2]
[373894823,1753140664954,-258.832452,0.00019959,2]
[373894824,1753140664963,-460.0,0.00019959,2]
[373894825,1753140664973,-315.387487,0.00019959,2]
[373894826,1753140664982,-460.0,0.00019959,2]
[373894827,1753140664992,-315.387487,0.00019959,2]
[373894828,1753140665001,-151.0,0.00019959,2]
[373894829,1753140665011,-163.49304091,0.00019959,2]
[373894830,1753140665020,-460.0,0.00019959,2]
[373894831,1753140665030,-228.233443,0.00019959,2]
[373894832,1753140665039,-460.0,0.00019959,2]
[373894833,1753140665049,-228.233443,0.00019959,2]
[373894834,1753140665058,-158.405763,0.00019959,2]
[373894835,1753140665067,-158.405763,0.00019959,2]
[373894836,1753140665076,-661.93,0.00019959,2]
[373894837,1753140665087,-477.47,0.00019959,2]
[373894838,1753140665099,-3942.78,0.00019959,2]
[373894839,1753140665108,-460.0,0.00019959,2]
[373894840,1753140665118,-1045.76,0.00019959,2]
[373894841,1753140665128,-460.0,0.00019959,2]
[373894842,1753140665137,-615.08,0.00019959,2]
[373894843,1753140665147,-863.37,0.00019959,2]
[373894844,1753140665156,-3770.82,0.00019959,2]
[373894845,1753140665167,-819.49,0.00019959,2]
[373894846,1753140665176,-460.0,0.00019959,2]
[373894847,1753140665185,-480.36,0.00019959,2]
[373894848,1753140665196,-2179.8,0.00019959,2]
[373894849,1753140665205,-460.0,0.00019959,2]
[373894850,1753140665215,-508.61,0.00019959,2]
[373894851,1753140665225,-484.85,0.00019959,2]
[373894852,1753140665235,-1540.02,0.00019959,2]
[373894853,1753140665245,-568.51,0.00019959,2]
[373894854,1753140665255,-6763.12,0.00019959,2]
[373894855,1753140665271,-747.93,0.00019959,2]
[373894856,1753140665280,-908.02,0.00019959,2]
[373894857,1753140665290,-2563.4,0.00019959,2]
[373894858,1753140665301,-210.41142167,0.00019959,2]
[373894859,1753140665311,-460.0,0.00019959,2]
[373894860,1753140665320,-460.0,0.00019959,2]
[373894861,1753140665329,-632.45,0.00019959,2]
[373894862,1753140665339,-460.0,0.00019959,2]
[373894863,1753140665349,-460.0,0.00019959,2]
[373894864,1753140665359,-212.26,0.00019959,2]
[373894865,1753140665368,-508.59,0.00019959,2]
[373894866,1753140665377,-999.79,0.00019959,2]
[373894867,1753140665386,-460.0,0.0001996,2]
[373894868,1753140665395,-151.0,0.0001996,2]
[373894869,1753140665404,-891.32,0.0001996,2]
[373894870,1753140665413,-460.0,0.0001996,2]
[373894871,1753140665422,-460.0,0.0001996,2]
[373894872,1753140665433,-460.0,0.0001996,2]
[373894873,1753140665442,-477.98,0.0001996,2]
[373894874,1753140665451,-460.0,0.0001996,2]
[373894875,1753140665461,-460.0,0.0001996,2]
[373894876,1753140665470,-1337.23,0.0001996,2]
[373894877,1753140665479,-460.0,0.0001996,2]
[373894878,1753140665488,-460.0,0.0001996,2]
[373894879,1753140665497,-460.0,0.0001996,2]
[373894880,1753140665507,-460.0,0.0001996,2]
[373894881,1753140665516,-263.87615503,0.0001996,2]
[373894882,1753140665525,-460.0,0.0001996,2]
[373894883,1753140665534,-500.0,0.00019978,2]
[373894884,1753140665544,-500.0,0.00019978,2]
[373894885,1753140665553,-500.0,0.00019978,2]
[373894886,1753140665574,-500.0,0.00019978,2]
[373894887,1753140665583,-300.0,0.00019978,2]
[373894888,1753140665593,-500.0,0.00019978,2]
[373894889,1753140665603,-500.0,0.00019978,2]
[373894890,1753140665613,-500.0,0.00019978,2]
[373894891,1753140665622,-500.0,0.00019978,2]
[373894892,1753140665632,-203.992475,0.00019994,2]
[373894893,1753140665641,-203.992475,0.00019994,2]
[373894894,1753140665651,-151.0,0.0002,2]
[373894895,1753140665660,-1994.81840867,0.0002,2]
[373894896,1753140665670,-7000.0,0.0002,2]
[373894897,1753140665680,-46660.13717557,0.0002,2]
[373894898,1753140665689,-151.0,0.0002,2]
[373894899,1753140665698,-151.0,0.0002,2]
[373894900,1753140665708,-151.0,0.0002,2]
[373894901,1753140665717,-158.503752,0.0002,2]
[373894902,1753140665727,-158.503752,0.0002,2]
[373894903,1753140665737,-151.0,0.0002,2]
[373894904,1753140665748,-151.0,0.0002,2]
[373894905,1753140665760,-151.0,0.0002,2]
[373894906,1753140665769,-247.009665,0.0002,2]
[373894907,1753140665779,-247.009665,0.0002,2]
[373894908,1753140665788,-229.937196,0.0002,2]
[373894909,1753140665798,-229.937196,0.0002,2]
[373894910,1753140665808,-151.0,0.0002,2]
[373894911,1753140665818,-151.0,0.0002,2]
[373894912,1753140665828,-300.40023785,0.0002,2]
[373894913,1753140665837,-4000.0,0.0002,4]
[373894914,1753140665847,-500.0,0.00020005,2]
[373894915,1753140665856,-859.0,0.00020026,2]
[373894916,1753140665866,-859.0,0.00020053,2]
[373894917,1753140665876,-460.0,0.00020058,2]
[373894918,1753140665885,-460.0,0.00020058,2]
[373894919,1753140665895,-460.0,0.00020058,2]
[373894920,1753140665905,-460.0,0.00020058,2]
[373894921,1753140665916,-460.0,0.00020058,2]
[373894922,1753140665925,-460.0,0.00020058,2]
[373894923,1753140666071,-460.0,0.00020058,2]
[373894924,1753140666090,-460.0,0.00020058,2]
[373894925,1753140666100,-460.0,0.00020058,2]
[373894926,1753140666110,-475.17,0.00020058,2]
[373894927,1753140666120,-608.05,0.00020058,2]
[373894928,1753140666130,-714.49,0.00020058,2]
[373894929,1753140666139,-460.0,0.00020058,2]
[373894930,1753140666153,-460.0,0.00020058,2]
[373894931,1753140666163,-336.06,0.00020058,2]
[373894932,1753140666172,-564.78536028,0.00020058,2]
[373894933,1753140666182,-473.15,0.00020058,2]
[373894934,1753140666192,-995.06,0.00020058,2]
[373894935,1753140666201,-460.0,0.00020058,2]
[373894936,1753140666210,-460.0,0.00020058,2]
[373894937,1753140666220,-460.0,0.00020058,2]
[373894938,1753140666229,-1002.52,0.00020058,2]
[373894939,1753140666239,-904.47,0.00020058,2]
[373894940,1753140666249,-842.93,0.00020058,2]
[373894941,1753140666259,-1466.53,0.00020058,2]
[373894942,1753140666271,-460.0,0.00020058,2]
[373894943,1753140666280,-460.0,0.00020058,2]
[373894944,1753140666290,-460.0,0.00020058,2]
[373894945,1753140666300,-460.0,0.00020058,2]
[373894946,1753140666311,-460.0,0.00020058,2]
[373894947,1753140666322,-460.0,0.00020058,2]
[373894948,1753140666333,-460.0,0.00020058,2]
[373894949,1753140666344,-681.98,0.00020058,2]
[373894950,1753140666355,-1019.82,0.00020058,2]
[373894951,1753140666365,-1245.38,0.00020058,2]
[373894952,1753140666375,-460.0,0.00020058,2]
[373894953,1753140666386,-700.42,0.00020058,2]
[373894954,1753140666396,-681.52,0.00020058,2]
[373894955,1753140666407,-519.27,0.00020058,2]
[373894956,1753140666417,-460.0,0.00020058,2]
[373894957,1753140666427,-156.933266,0.00020059,2]
[373894958,1753140666436,-156.933266,0.00020059,2]
[373894959,1753140666446,-258.832452,0.0002006,2]
[373894960,1753140666456,-258.832453,0.0002006,2]
[373894961,1753140666466,-315.387487,0.0002006,2]
[373894962,1753140666475,-315.387487,0.0002006,2]
[373894963,1753140666485,-151.0,0.0002006,2]
[373894964,1753140666494,-228.233443,0.0002006,2]
[373894965,1753140666503,-228.233447,0.0002006,2]
[373894966,1753140666514,-158.405763,0.0002006,2]
[373894967,1753140666523,-158.40577,0.0002006,2]
[373894968,1753140666533,-1750.53,0.0002006,2]
[373894969,1753140666544,-1045.06,0.0002006,2]
[373894970,1753140666554,-1642.26,0.0002006,2]
[373894971,1753140666564,-1500.0,0.00020061,7]
[373894972,1753140666573,-1500.0,0.00020061,7]
[373894973,1753140666583,-1500.0,0.00020061,7]
[373894974,1753140666593,-1500.0,0.00020061,7]
[373894975,1753140666603,-1500.0,0.00020061,7]
[373894976,1753140666612,-1500.0,0.00020061,7]
[373894977,1753140666624,-1500.0,0.00020061,7]
[373894978,1753140666637,-1500.0,0.00020061,7]
[373894979,1753140666648,-1500.0,0.00020061,7]
[373894980,1753140666658,-1500.0,0.00020061,7]
[373894981,1753140666669,-1500.0,0.00020061,7]
[373894982,1753140666678,-1500.0,0.00020061,7]
[373894983,1753140666689,-1500.0,0.00020061,7]
[373894984,1753140666699,-1500.0,0.00020061,7]
[373894985,1753140666709,-151.0,0.00020061,2]
[373894986,1753140666718,-1500.0,0.00020061,7]
[373894987,1753140666728,-1500.0,0.00020061,7]
[373894988,1753140666738,-1500.0,0.00020061,7]
[373894989,1753140666747,-1500.0,0.00020061,7]
[373894990,1753140666757,-1500.0,0.00020061,7]
[373894991,1753140666767,-1500.0,0.00020061,7]
[373894992,1753140666777,-1500.0,0.00020061,7]
[373894993,1753140666786,-1500.0,0.00020061,7]
[373894994,1753140666796,-1500.0,0.00020061,7]
[373894995,1753140666805,-1500.0,0.00020061,7]
[373894996,1753140666814,-1500.0,0.00020061,7]
[373894997,1753140666823,-1500.0,0.00020061,7]
[373894998,1753140666832,-1500.0,0.00020061,7]
[373894999,1753140666849,-1500.0,0.00020061,7]
[373895000,1753140666863,-1500.0,0.00020061,7]
[373895001,1753140666873,-1500.0,0.00020061,7]
[373895002,1753140666882,-1500.0,0.00020061,7]
[373895003,1753140666892,-1500.0,0.00020061,7]
[373895004,1753140666902,-1500.0,0.00020061,7]
[373895005,1753140666911,-1500.0,0.00020061,7]
[373895006,1753140666921,-1500.0,0.00020061,7]
[373895007,1753140666930,-1500.0,0.00020061,7]
[373895008,1753140666940,-1500.0,0.00020061,7]
[373895009,1753140666949,-1500.0,0.00020061,7]
[373895010,1753140666959,-1500.0,0.00020061,7]
[373895011,1753140666969,-1500.0,0.00020061,7]
[373895012,1753140666978,-1500.0,0.00020061,7]
[373895013,1753140666988,-1500.0,0.00020061,7]
[373895014,1753140666998,-1500.0,0.00020061,7]
[373895015,1753140667008,-1500.0,0.00020061,7]
[373895016,1753140667018,-1500.0,0.00020061,7]
[373895017,1753140667027,-1500.0,0.00020061,7]
[373895018,1753140667037,-1500.0,0.00020061,7]
[373895019,1753140667048,-1500.0,0.00020061,7]
[373895020,1753140667058,-1500.0,0.00020061,7]
[373895021,1753140667068,-1500.0,0.00020061,7]
[373895022,1753140667078,-1500.0,0.00020061,7]
[373895023,1753140667088,-1500.0,0.00020061,7]
[373895024,1753140667098,-1500.0,0.00020061,7]
[373895025,1753140667108,-1500.0,0.00020061,7]
[373895026,1753140667117,-1500.0,0.00020061,7]
[373895027,1753140667127,-1500.0,0.00020061,7]
[373895028,1753140667136,-1500.0,0.00020061,7]
[373895029,1753140667145,-1372.323946,0.00020061,7]
[373895030,1753140667154,-460.0,0.00020061,2]
[373895031,1753140667165,-197.03532684,0.00020061,2]
[373895032,1753140667174,-460.0,0.00020061,2]
[373895033,1753140667183,-6853.84,0.00020061,2]
[373895034,1753140667194,-1820.72,0.00020061,2]
[373895035,1753140667204,-2086.57,0.00020061,2]
[373895036,1753140667215,-3241.4,0.00020062,2]
[373895037,1753140667225,-611.95,0.00020062,2]
[373895038,1753140667234,-151.0,0.00020064,2]
[373895039,1753140667244,-1986.06,0.00020064,2]
[373895040,1753140667253,-239.70493197,0.00020064,2]
[373895041,1753140667263,-352.30195339,0.00020064,2]
[373895042,1753140667278,-203.992475,0.00020068,2]
[373895043,1753140667289,-203.992475,0.00020068,2]
[373895044,1753140667300,-8389.27005442,0.00020072,2]
[373895045,1753140667310,-500.0,0.00020073,2]
[373895046,1753140667319,-407.47396417,0.00020073,2]
[373895047,1753140667329,-500.0,0.00020073,2]
[373895048,1753140667339,-500.0,0.00020073,2]
[373895049,1753140667348,-500.0,0.00020073,2]
[373895050,1753140667358,-500.0,0.00020073,2]
[373895051,1753140667367,-2373.76,0.00020076,2]
[373895052,1753140667379,-1158.85,0.00020076,2]
[373895053,1753140667389,-194.761355,0.00020083,2]
[373895054,1753140667399,-194.761355,0.00020083,2]
[373895055,1753140667408,-151.0,0.00020084,2]
[373895056,1753140667419,-1172.0,0.00020086,2]
[373895057,1753140667430,-866.0,0.00020086,2]
[373895058,1753140667439,-866.0,0.00020086,2]
[373895059,1753140667449,-150.0,0.00020097,2]
[373895060,1753140667458,-160.0,0.000201,7]
[373895061,1753140667468,-12617.54915256,0.000201,7]
[373895062,1753140667477,-214.60209147,0.000201,7]
[373895063,1753140667487,-476.51375022,0.000201,7]
[373895064,1753140667497,-2122.61414141,0.00020108,2]
[373895065,1753140667507,-2000.0,0.00020128,2]
[373895066,1753140667516,-1440.67248963,0.00020128,2]
[373895067,1753140667526,-2000.0,0.00020128,2]
[373895068,1753140667537,-2000.0,0.00020128,2]
[373895069,1753140667548,-2000.0,0.00020128,2]
[373895070,1753140667559,-2000.0,0.0002013,2]
[373895071,1753140667568,-1229.37779903,0.00020154,2]
[373895072,1753140667577,-151.0,0.00020168,2]
[373895073,1753140667587,-260.0,0.00020177,2]
[373895074,1753140667596,-1000.0,0.00020229,2]
[373895075,1753140667605,-607.63852178,0.00020233,2]
[373895076,1753140667615,-460.0,0.00020233,2]
[373895077,1753140667625,-336.46,0.00020233,2]
[373895078,1753140667634,-460.0,0.00020233,2]
[373895079,1753140667647,-460.0,0.00020233,2]
[373895080,1753140667656,-3416.98,0.00020233,2]
[373895081,1753140667667,-460.0,0.00020233,2]
[373895082,1753140667676,-162.66753133,0.00020233,2]
[373895083,1753140667685,-460.0,0.00020233,2]
[373895084,1753140667695,-460.0,0.00020233,2]
[373895085,1753140667705,-661.93,0.00020233,2]
[373895086,1753140667714,-477.47,0.00020233,2]
[373895087,1753140667723,-3942.78,0.00020233,2]
[373895088,1753140667733,-460.0,0.00020233,2]
[373895089,1753140667743,-1045.76,0.00020233,2]
[373895090,1753140667753,-460.0,0.00020233,2]
[373895091,1753140667763,-615.08,0.00020233,2]
[373895092,1753140667772,-863.37,0.00020233,2]
[373895093,1753140667781,-3770.82,0.00020233,2]
[373895094,1753140667791,-819.49,0.00020233,2]
[373895095,1753140667800,-460.0,0.00020233,2]
[373895096,1753140667810,-480.36,0.00020233,2]
[373895097,1753140667819,-2179.8,0.00020233,2]
[373895098,1753140667828,-460.0,0.00020233,2]
[373895099,1753140667839,-508.61,0.00020233,2]
[373895100,1753140667850,-484.85,0.00020233,2]
[373895101,1753140667860,-1540.02,0.00020233,2]
[373895102,1753140667871,-568.51,0.00020233,2]
[373895103,1753140667882,-6763.12,0.00020233,2]
[373895104,1753140667893,-747.93,0.00020233,2]
[373895105,1753140667903,-908.02,0.00020233,2]
[373895106,1753140667913,-2563.4,0.00020233,2]
[373895107,1753140667923,-460.0,0.00020233,2]
[373895108,1753140667933,-314.24537845,0.00020233,2]
[373895109,1753140667942,-632.45,0.00020233,2]
[373895110,1753140667952,-460.0,0.00020233,2]
[373895111,1753140667962,-460.0,0.00020233,2]
[373895112,1753140667972,-508.59,0.00020233,2]
[373895113,1753140667982,-999.79,0.00020233,2]
[373895114,1753140667991,-460.0,0.00020234,2]
[373895115,1753140668001,-891.32,0.00020234,2]
[373895116,1753140668010,-460.0,0.00020234,2]
[373895117,1753140668020,-460.0,0.00020234,2]
[373895118,1753140668030,-460.0,0.00020234,2]
[373895119,1753140668040,-477.98,0.00020234,2]
[373895120,1753140668052,-460.0,0.00020234,2]
[373895121,1753140668065,-1337.23,0.00020234,2]
[373895122,1753140668075,-460.0,0.00020234,2]
[373895123,1753140668088,-460.0,0.00020234,2]
[373895124,1753140668097,-460.0,0.00020234,2]
[373895125,1753140668107,-460.0,0.00020234,2]
[373895126,1753140668118,-859.0,0.00020253,2]
[373895127,1753140668129,-229.937196,0.00020258,2]
[373895128,1753140668139,-229.937206,0.00020258,2]
[373895129,1753140668149,-203.992475,0.00020266,2]
[373895130,1753140668158,-203.992475,0.00020266,2]
[373895131,1753140668168,-156.933266,0.00020268,2]
[373895132,1753140668178,-156.933271,0.00020268,2]
[373895133,1753140668187,-1500.0,0.00020268,2]
[373895134,1753140668196,-151.5913915,0.00020274,2]
[373895135,1753140668205,-158.503752,0.00020276,2]
[373895136,1753140668214,-158.503752,0.00020276,2]
[373895137,1753140668224,-4287.10795779,0.00020314,3]
[373895138,1753140668469,-4102.16209663,0.00020314,3]
[373895139,1753140668479,-460.0,0.00020332,2]
[373895140,1753140668488,-460.0,0.00020332,2]
[373895141,1753140668498,-460.0,0.00020332,2]
[373895142,1753140668507,-460.0,0.00020332,2]
[373895143,1753140668517,-460.0,0.00020332,2]
[373895144,1753140668526,-460.0,0.00020332,2]
[373895145,1753140668536,-460.0,0.00020332,2]
[373895146,1753140668545,-460.0,0.00020332,2]
[373895147,1753140668555,-460.0,0.00020332,2]
[373895148,1753140668565,-475.17,0.00020332,2]
[373895149,1753140668575,-608.05,0.00020332,2]
[373895150,1753140668585,-249.43965865,0.00020332,2]
[373895151,1753140668597,-465.05034135,0.00020332,2]
[373895152,1753140668607,-460.0,0.00020332,2]
[373895153,1753140668617,-460.0,0.00020332,2]
[373895154,1753140668627,-473.15,0.00020332,2]
[373895155,1753140668636,-995.06,0.00020332,2]
[373895156,1753140668646,-460.0,0.00020332,2]
[373895157,1753140668656,-460.0,0.00020332,2]
[373895158,1753140668666,-460.0,0.00020332,2]
[373895159,1753140668675,-1002.52,0.00020332,2]
[373895160,1753140668685,-904.47,0.00020332,2]
[373895161,1753140668694,-842.93,0.00020332,2]
[373895162,1753140668704,-1466.53,0.00020332,2]
[373895163,1753140668713,-460.0,0.00020332,2]
[373895164,1753140668723,-460.0,0.00020332,2]
[373895165,1753140668732,-460.0,0.00020332,2]
[373895166,1753140668742,-460.0,0.00020332,2]
[373895167,1753140668752,-460.0,0.00020332,2]
[373895168,1753140668762,-460.0,0.00020332,2]
[373895169,1753140668772,-460.0,0.00020332,2]
[373895170,1753140668783,-681.98,0.00020332,2]
[373895171,1753140668793,-1019.82,0.00020332,2]
[373895172,1753140668802,-1245.38,0.00020332,2]
[373895173,1753140668812,-460.0,0.00020332,2]
[373895174,1753140668822,-700.42,0.00020332,2]
[373895175,1753140668832,-681.52,0.00020332,2]
[373895176,1753140668842,-519.27,0.00020332,2]
[373895177,1753140668851,-460.0,0.00020332,2]
[373895178,1753140668860,-180.879651,0.00020334,2]
[373895179,1753140668869,-151.0,0.00020334,2]
[373895180,1753140668879,-247.009665,0.00020334,2]
[373895181,1753140668889,-247.009665,0.00020334,2]
[373895182,1753140668898,-151.0,0.00020334,2]
[373895183,1753140668908,-1750.53,0.00020334,2]
[373895184,1753140668919,-1045.06,0.00020334,2]
[373895185,1753140668928,-1642.26,0.00020334,2]
[373895186,1753140668938,-151.0,0.00020335,2]
[373895187,1753140668947,-460.0,0.00020335,2]
[373895188,1753140668956,-460.0,0.00020335,2]
[373895189,1753140668966,-6853.84,0.00020335,2]
[373895190,1753140668975,-1820.72,0.00020335,2]
[373895191,1753140668985,-2086.57,0.00020335,2]
[373895192,1753140668996,-3241.4,0.00020336,2]
[373895193,1753140669005,-611.95,0.00020336,2]
[373895194,1753140669015,-151.0,0.00020338,2]
[373895195,1753140669025,-226.744143,0.00020338,2]
[373895196,1753140669035,-151.0,0.00020338,2]
[373895197,1753140669044,-1986.06,0.00020338,2]
[373895198,1753140669054,-151.0,0.00020342,2]
[373895199,1753140669064,-2373.76,0.0002035,2]
[373895200,1753140669074,-1158.85,0.0002035,2]
[373895201,1753140669083,-194.761355,0.00020359,2]
[373895202,1753140669093,-194.761355,0.00020359,2]
[373895203,1753140669102,-1172.0,0.0002036,2]
[373895204,1753140669112,-866.0,0.0002036,2]
[373895205,1753140669122,-866.0,0.0002036,2]
[373895206,1753140669131,-160.0,0.000204,3]
[373895207,1753140669141,-3268.68104393,0.000204,3]
[373895208,1753140669153,-1241.1733763,0.000204,3]
[373895209,1753140669165,-377.33167231,0.000204,3]